fUST/lending_fUST_20260424
["ID","MTS","AMOUNT","RATE_DAILY","PERIOD"]
[421079937,1776990638934,-500.0,0.00019597,2]
[421079939,1776990638943,-500.0,0.00019597,2]
[421079941,1776990638952,-500.0,0.00019597,2]
[421079943,1776990638962,-500.0,0.00019597,2]
[421079945,1776990638971,-500.0,0.00019597,2]
[421079947,1776990638980,-500.0,0.00019597,2]
[421079949,1776990638988,-500.0,0.00019597,2]
[421079951,1776990638997,-500.0,0.00019597,2]
[421079953,1776990639006,-500.0,0.00019597,2]
[421079955,1776990639015,-202.87930336,0.00019597,2]
[421079957,1776990639025,-333.3628276,0.00019598,2]
[421079959,1776990639037,-65501.74532282,0.00019598,2]
[421079966,1776990639114,-1472.71833555,0.00019598,2]
[421079981,1776990639330,-141111.46270414,0.00019598,2]
[421080188,1776990646919,-179896.68813407,0.00019598,2]
[421080197,1776990646999,-105571.57949306,0.00019598,2]
[421080199,1776990647009,-714.0,0.00019598,2]
[421080201,1776990647018,-300.0,0.00019599,2]
[421080203,1776990647027,-748.59585626,0.000196,2]
[421080205,1776990647036,-437.34502749,0.00019641,2]
[421080207,1776990647045,-600.0,0.00019662,2]
[421080209,1776990647054,-32588.21051099,0.00019698,2]
[421080211,1776990647064,-686.10606249,0.00019741,2]
[421080213,1776990647074,-160.0,0.00019758,2]
[421080215,1776990647084,-457.9787574,0.0001976,2]
[421080217,1776990647093,-160.0,0.00019766,2]
[421080219,1776990647102,-686.10606249,0.00019781,2]
[421080221,1776990647112,-487.0,0.00019798,2]
[421080223,1776990647121,-487.0,0.00019798,2]
[421080225,1776990647130,-487.0,0.00019798,2]
[421080227,1776990647139,-487.0,0.00019798,2]
[421080229,1776990647148,-487.0,0.00019798,2]
[421080231,1776990647157,-487.0,0.00019798,2]
[421080233,1776990647166,-487.0,0.00019798,2]
[421080235,1776990647175,-487.0,0.00019798,2]
[421080236,1776990647185,-487.0,0.00019798,2]
[421080237,1776990647193,-487.0,0.00019798,2]
[421080238,1776990647202,-487.0,0.00019798,2]
[421080239,1776990647211,-487.0,0.00019798,2]
[421080240,1776990647221,-487.0,0.00019798,2]
[421080241,1776990647230,-487.0,0.00019798,2]
[421080242,1776990647239,-487.0,0.00019798,2]
[421080243,1776990647248,-686.78,0.00019798,2]
[421080244,1776990647257,-404.809,0.00019798,2]
[421080245,1776990647266,-300.0,0.00019798,3]
[421080246,1776990647275,-686.10606249,0.00019821,2]
[421080247,1776990647284,-177.0,0.00019841,2]
[421080248,1776990647293,-152.0,0.00019854,7]
[421080249,1776990647302,-686.10606249,0.0001986,2]
[421080250,1776990647312,-500.0,0.00019898,2]
[421080251,1776990647322,-2127.5,0.000199,2]
[421080252,1776990647331,-816.73397128,0.000199,2]
[421080253,1776990647340,-2153.55643353,0.000199,2]
[421080254,1776990647350,-686.10606249,0.000199,2]
[421080255,1776990647359,-500.0,0.00019939,2]
[421080256,1776990647368,-500.0,0.00019973,2]
[421080257,1776990647378,-500.0,0.00019973,2]
[421080258,1776990647388,-150.0,0.00019973,2]
[421080259,1776990647396,-500.0,0.00019973,2]
[421080260,1776990647406,-1794.42093139,0.0002,2]
[421080261,1776990647415,-219617.87193385,0.0002,2]
[421080262,1776991536131,-171.02632281,0.00011781,2]
[421080263,1776991536151,-586.0,0.00011781,2]
[421080264,1776991536174,-150.0,0.00011841,2]
[421080265,1776991536194,-366.27235186,0.000119,2]
[421080266,1776991599071,-171.02632281,0.00011781,2]
[421080267,1776991628143,-207.32503629,0.00011781,2]
[421080268,1776991628164,-586.0,0.00011781,2]
[421080269,1776991628184,-57.80438622,0.000119,2]
[421080270,1776991634110,-380.30400318,0.000119,2]
[421080271,1776991634129,-1000.0,0.00013699,2]
[421080272,1776991634150,-108.63984635,0.00013841,2]
[421080273,1776991638089,-68.36015365,0.00013841,2]
[421080274,1776991638111,-204.0,0.00015841,2]
[421080275,1776991638132,-168.0,0.00017148,2]
[421080276,1776991638155,-231.0,0.00017841,2]
[421080277,1776991638175,-184.0,0.000189,2]
[421080278,1776991638196,-1540.8466041,0.00019178,2]
[421080279,1776991643141,-20.1533959,0.00019178,2]
[421080280,1776991643163,-166.88138014,0.00019396,2]
[421080281,1776991654077,-133.11861986,0.00019396,2]
[421080282,1776991654100,-42.2855652,0.00019396,2]
[421080634,1776991838811,-1000.0,0.00013699,2]
[421080635,1776991838821,-150.0,0.00016498,2]
[421080636,1776991838830,-177.0,0.00018498,2]
[421080637,1776991838839,-382.67689908,0.00019297,2]
[421080638,1776991838849,-300.0,0.00019396,2]
[421080639,1776991838858,-300.0,0.00019396,2]
[421080640,1776991838868,-300.0,0.00019396,2]
[421080641,1776991838877,-1200.0,0.00019396,2]
[421080642,1776991838887,-291.07726239,0.00019396,2]
[421080643,1776991838896,-77789.36183248,0.00019397,2]
[421080644,1776991838968,-3026.59533107,0.00019397,2]
[421080645,1776991838980,-721.97846756,0.00019397,2]
[421080668,1776991843923,-2060.3243339,0.00019397,2]
[421080669,1776991843935,-1074.91166387,0.00019397,2]
[421080670,1776991843946,-1580.71166212,0.00019397,2]
[421080671,1776991843957,-3845.15198489,0.00019397,2]
[421080672,1776991844030,-28671.24827014,0.00019397,2]
[421080692,1776991847027,-13724.45817494,0.00019397,2]
[421080697,1776992736105,-300.0,0.0001274,2]
[421080698,1776992736126,-300.0,0.0001274,2]
[421080699,1776992736146,-300.0,0.0001274,2]
[421080700,1776992736168,-692.10991882,0.0001274,2]
[421080701,1776992826105,-300.0,0.00011078,24]
[421080702,1776992826129,-1014.00326186,0.00011672,2]
[421080703,1776992837117,-753.95322536,0.00011672,2]
[421080704,1776992845104,-174.97739745,0.00011672,2]
[421080705,1776992953140,-3057.06611533,0.00011672,2]
[421080706,1776992953161,-584.0,0.00011672,2]
[421080707,1776992953185,-252.44647781,0.0001179,2]
[421080708,1776992961069,-180.63686122,0.0001179,2]
[421080709,1776992961093,-150.0,0.00011909,2]
[421080710,1776992961114,-433.76313878,0.0001274,2]
[421080711,1776992973107,-74.1269424,0.0001274,2]
[421080712,1776992973128,-512.46676888,0.00013,2]
[421080713,1776992973149,-254.09621591,0.00013425,2]
[421080756,1776993031920,-425.09362606,0.0001274,2]
[421080757,1776993031931,-174.90637394,0.0001274,2]
[421080758,1776993031940,-73.44355437,0.00013425,2]
[421080759,1776993031949,-76.12137848,0.00013693,2]
[421080760,1776993031959,-223.87862152,0.00013693,2]
[421080761,1776993031970,-240.0,0.00013693,2]
[421080762,1776993031979,-300.0,0.00013693,2]
[421080763,1776993031988,-626.82472562,0.00013694,2]
[421080764,1776993031997,-300.0,0.00013694,2]
[421080765,1776993032007,-300.0,0.00013694,2]
[421080766,1776993032015,-300.0,0.00013694,2]
[421080767,1776993032025,-300.0,0.00013694,2]
[421080768,1776993032034,-300.0,0.00013694,2]
[421080769,1776993032043,-300.0,0.00013694,2]
[421080770,1776993032053,-300.0,0.00013694,2]
[421080771,1776993032062,-300.0,0.00013694,2]
[421080772,1776993032071,-300.0,0.00013694,2]
[421080773,1776993032080,-300.0,0.00013694,2]
[421080774,1776993032090,-300.0,0.00013694,2]
[421080775,1776993032099,-300.0,0.00013694,2]
[421080776,1776993032108,-300.0,0.00013694,2]
[421080777,1776993032117,-300.0,0.00013694,2]
[421080778,1776993032126,-300.0,0.00013694,2]
[421080779,1776993032135,-1000.0,0.00013699,2]
[421080780,1776993032144,-177.0,0.00013909,2]
[421080781,1776993032154,-44.87619974,0.00013967,2]
[421080782,1776993032166,-555.12380026,0.00013967,2]
[421080783,1776993032175,-244.0,0.00015006,2]
[421080784,1776993032185,-720.0,0.00015364,2]
[421080785,1776993032194,-204.0,0.00015909,2]
[421080786,1776993032204,-996.31484804,0.000168,2]
[421080787,1776993032215,-6244.68515196,0.000168,2]
[421080788,1776993032224,-864.0,0.000169,2]
[421080789,1776993032234,-881.86982116,0.00017,2]
[421080790,1776993032243,-231.0,0.00017909,2]
[421080791,1776993032252,-184.0,0.00018504,2]
[421080792,1776993032262,-354.19594275,0.00018504,2]
[421080793,1776993032273,-86.80405725,0.00018504,2]
[421080794,1776993032283,-413.19594275,0.0001859,2]
[421080795,1776993032294,-586.80405725,0.0001859,2]
[421080796,1776993032303,-238.25122524,0.00019192,2]
[421080797,1776993032312,-500.0,0.00019192,2]
[421080798,1776993032322,-500.0,0.00019192,2]
[421080799,1776993032331,-500.0,0.00019192,2]
[421080800,1776993032340,-500.0,0.00019192,2]
[421080801,1776993032349,-500.0,0.00019192,2]
[421080802,1776993032358,-500.0,0.00019192,2]
[421080803,1776993032368,-500.0,0.00019192,2]
[421080804,1776993032377,-272.17491844,0.00019192,2]
[421080837,1776993038178,-227.82508156,0.00019192,2]
[421080838,1776993038188,-500.0,0.00019192,2]
[421080839,1776993038198,-500.0,0.00019192,2]
[421080840,1776993038207,-500.0,0.00019192,2]
[421080841,1776993038218,-500.0,0.00019192,2]
[421080842,1776993038227,-155.34320043,0.00019192,2]
[421080843,1776993038239,-344.65679957,0.00019192,2]
[421080844,1776993038249,-500.0,0.00019192,2]
[421080845,1776993038259,-402.44863901,0.00019192,2]
[421080846,1776993038271,-97.55136099,0.00019192,2]
[421080847,1776993038281,-500.0,0.00019192,2]
[421080848,1776993038290,-500.0,0.00019192,2]
[421080849,1776993038299,-500.0,0.00019192,2]
[421080850,1776993038309,-500.0,0.00019192,2]
[421080851,1776993038318,-500.0,0.00019192,2]
[421080852,1776993038327,-500.0,0.00019192,2]
[421080853,1776993038337,-500.0,0.00019192,2]
[421080854,1776993038346,-500.0,0.00019192,2]
[421080855,1776993038355,-500.0,0.00019192,2]
[421080856,1776993038365,-500.0,0.00019192,2]
[421080857,1776993038374,-500.0,0.00019192,2]
[421080858,1776993038383,-500.0,0.00019192,2]
[421080859,1776993038393,-500.0,0.00019192,2]
[421080860,1776993038402,-610.78219811,0.00019192,2]
[421080861,1776993038411,-500.0,0.00019192,2]
[421080863,1776993038420,-500.0,0.00019192,2]
[421080864,1776993038429,-362.78161293,0.00019192,2]
[421080865,1776993038441,-137.21838707,0.00019192,2]
[421080866,1776993038450,-500.0,0.00019192,2]
[421080867,1776993038460,-500.0,0.00019192,2]
[421080868,1776993038469,-500.0,0.00019192,2]
[421080869,1776993038478,-500.0,0.00019192,2]
[421080870,1776993038489,-469.05405406,0.00019192,2]
[421080871,1776993038500,-500.0,0.00019192,2]
[421080872,1776993038510,-500.0,0.00019192,2]
[421080873,1776993038519,-500.0,0.00019192,2]
[421080874,1776993038529,-500.0,0.00019192,2]
[421080875,1776993038539,-500.0,0.00019192,2]
[421080876,1776993038548,-411.09537,0.00019192,2]
[421080877,1776993038558,-500.0,0.00019192,2]
[421080878,1776993038567,-500.0,0.00019192,2]
[421080879,1776993038577,-500.0,0.00019192,2]
[421080880,1776993038587,-500.0,0.00019192,2]
[421080881,1776993038596,-500.0,0.00019192,2]
[421080882,1776993038606,-500.0,0.00019192,2]
[421080883,1776993038616,-500.0,0.00019192,2]
[421080884,1776993038626,-500.0,0.00019192,2]
[421080885,1776993038636,-500.0,0.00019192,2]
[421080886,1776993038646,-500.0,0.00019192,2]
[421080887,1776993038655,-500.0,0.00019192,2]
[421080888,1776993038665,-500.0,0.00019192,2]
[421080889,1776993038674,-500.0,0.00019192,2]
[421080890,1776993038683,-500.0,0.00019192,2]
[421080891,1776993038692,-500.0,0.00019192,2]
[421080892,1776993038701,-500.0,0.00019192,2]
[421080893,1776993038710,-500.0,0.00019192,2]
[421080894,1776993038719,-500.0,0.00019192,2]
[421080895,1776993038729,-500.0,0.00019192,2]
[421080896,1776993038738,-500.0,0.00019192,2]
[421080897,1776993038747,-500.0,0.00019192,2]
[421080898,1776993038756,-500.0,0.00019192,2]
[421080899,1776993038766,-391.09363859,0.00019192,2]
[421080900,1776993038775,-500.0,0.00019192,2]
[421080901,1776993038784,-500.0,0.00019192,2]
[421080902,1776993038793,-78026.76377429,0.00019195,2]
[421080903,1776993038805,-359.75693688,0.00019195,2]
[421081060,1776993043085,-3678.4336492,0.00019095,2]
[421081076,1776993046712,-989.92404718,0.00019095,2]
[421081077,1776993936121,-566.68795847,0.000119,2]
[421081078,1776993936141,-588.0,0.000119,2]
[421081079,1776993936160,-335.94344054,0.000119,2]
[421081080,1776994033137,-197.91517576,0.000119,2]
[421081081,1776994041473,-95.07268397,0.000119,2]
[421081082,1776994041494,-80.82645392,0.000119,2]
[421081083,1776994051085,-507.17354608,0.000119,2]
[421081084,1776994051108,-127.00818702,0.00012314,2]
[421081085,1776994053081,-22.99181298,0.00012314,2]
[421081086,1776994053103,-183.4209883,0.00012729,2]
[421081087,1776994053123,-183.4209883,0.00012983,7]
[421081088,1776994053143,-826.74520409,0.00013699,2]
[421081089,1776994053170,-173.25479591,0.00013699,2]
[421081090,1776994053193,-177.0,0.00014314,2]
[421081091,1776994053215,-204.0,0.00016314,2]
[421081092,1776994053237,-231.0,0.00018314,2]
[421081093,1776994053258,-207.78706691,0.00018615,2]
[421081143,1776994232480,-183.42098829,0.00013233,14]
[421081146,1776994232490,-224.49715812,0.00013699,2]
[421081216,1776994238948,-110.34296297,0.00013699,2]
[421081217,1776994238960,-665.15987891,0.00013699,2]
[421081218,1776994238970,-615.0,0.00013699,2]
[421081219,1776994238981,-300.0,0.00016115,2]
[421081220,1776994238991,-645.00606298,0.00016115,2]
[421081557,1776994243748,-117.99393702,0.00016115,2]
[421081559,1776994243757,-47.63867757,0.00016116,2]
[421081666,1776994248067,-654.0,0.00016116,2]
[421081667,1776994248077,-235.44132243,0.00016116,2]
[421081668,1776994248086,-3.42698544,0.00016116,2]
[421081669,1776994248098,-279.65301456,0.00016116,2]
[421081670,1776994248107,-204.25446777,0.00016116,2]
[421081671,1776994248119,-78.82553223,0.00016116,2]
[421081672,1776994248128,-283.08,0.00016116,2]
[421081673,1776994248137,-283.08,0.00016116,2]
[421081674,1776994248147,-283.08,0.00016116,2]
[421081675,1776994248157,-283.08,0.00016116,2]
[421081676,1776994248167,-283.08,0.00016116,2]
[421081677,1776994248177,-283.08,0.00016116,2]
[421081678,1776994248187,-283.07635133,0.00016116,2]
[421081679,1776994248197,-300.0,0.00016437,2]
[421081680,1776994248207,-300.0,0.00016437,2]
[421081681,1776994248216,-300.0,0.00016437,2]
[421081682,1776994248225,-300.0,0.00016437,2]
[421081683,1776994248234,-300.0,0.00016437,2]
[421081684,1776994248244,-300.0,0.00016437,2]
[421081685,1776994248253,-300.0,0.00016437,2]
[421081686,1776994248263,-300.0,0.00016437,2]
[421081687,1776994248272,-300.0,0.00016437,2]
[421081688,1776994248281,-300.0,0.00016437,2]
[421081689,1776994248291,-300.0,0.00016437,2]
[421081690,1776994248300,-300.0,0.00016437,2]
[421081691,1776994248310,-300.0,0.00016437,2]
[421081692,1776994248319,-300.0,0.00016437,2]
[421081693,1776994248329,-300.0,0.00016437,2]
[421081694,1776994248339,-600.0,0.00016765,2]
[421081695,1776994248348,-420.0,0.00017617,2]
[421081696,1776994248357,-720.0,0.00018441,2]
[421081697,1776994248367,-250.37757364,0.00018526,2]
[421081698,1776994248376,-116.06093309,0.00018615,2]
[421081699,1776994248386,-455.80029,0.00018791,2]
[421081700,1776994248395,-151.394149,0.00018791,2]
[421081701,1776994248405,-500.0,0.00018894,2]
[421081702,1776994248415,-500.0,0.00018894,2]
[421081703,1776994248424,-500.0,0.00018894,2]
[421081704,1776994248433,-211.07821981,0.00018894,2]
[421081705,1776994248442,-218.78378378,0.00018894,2]
[421081706,1776994248451,-212.34393,0.00018894,2]
[421081707,1776994248460,-500.0,0.00018894,2]
[421081708,1776994248469,-500.0,0.00018894,2]
[421081709,1776994248479,-376.78818207,0.00018894,2]
[421081710,1776994248488,-500.0,0.00018894,2]
[421081711,1776994248497,-500.0,0.00018894,2]
[421081712,1776994248506,-500.0,0.00018894,2]
[421081713,1776994248516,-500.0,0.00018894,2]
[421081714,1776994248525,-500.0,0.00018894,2]
[421081715,1776994248534,-500.0,0.00018894,2]
[421081716,1776994248543,-500.0,0.00018894,2]
[421081717,1776994248552,-500.0,0.00018894,2]
[421081718,1776994248562,-500.0,0.00018894,2]
[421081719,1776994248571,-500.0,0.00018894,2]
[421081720,1776994248581,-314.9523831,0.00018894,2]
[421081721,1776994248591,-500.0,0.00018894,2]
[421081722,1776994248600,-500.0,0.00018894,2]
[421081723,1776994248609,-500.0,0.00018894,2]
[421081724,1776994248618,-500.0,0.00018894,2]
[421081725,1776994248628,-500.0,0.00018894,2]
[421081726,1776994248637,-500.0,0.00018894,2]
[421081727,1776994248646,-500.0,0.00018894,2]
[421081728,1776994248655,-500.0,0.00018894,2]
[421081729,1776994248664,-250.0,0.00018894,2]
[421081730,1776994248674,-500.0,0.00018894,2]
[421081731,1776994248684,-500.0,0.00018894,2]
[421081732,1776994248695,-500.0,0.00018894,2]
[421081733,1776994248706,-500.0,0.00018894,2]
[421081734,1776994248715,-18554.11785378,0.00018895,2]
[421081735,1776994327580,64.61654,4.013e-05,2]
[421081736,1776994327608,500.0,4.013e-05,2]
[421081737,1776994327636,500.0,4.013e-05,2]
[421081738,1776994327664,500.0,4.013e-05,2]
[421081739,1776994327691,500.0,4.013e-05,2]
[421081740,1776994327718,203.65346,4.013e-05,2]
[421081744,1776995194118,-171.02632281,0.00012597,2]
[421081745,1776995226124,-105.09476366,0.00012597,2]
[421081746,1776995226146,-83.02805236,0.00012724,2]
[421081747,1776995240073,-175.45368034,0.00012597,2]
[421081748,1776995251091,-31.87135595,0.00012597,2]
[421081749,1776995251114,-516.97194764,0.00012724,2]
[421081750,1776995251137,-150.0,0.00012724,2]
[421081751,1776995251156,-200.23276079,0.00012724,2]
[421081752,1776995251176,-1000.0,0.00013699,2]
[421081753,1776995251197,-177.0,0.00014724,2]
[421081754,1776995251217,-204.0,0.00016724,2]
[421081755,1776995251236,-2.64690539,0.00018,120]
[421081756,1776995253094,-887.67437962,0.00018,120]
[421081799,1776995432536,-704.72296533,0.00018,120]
[421081800,1776995432548,-194.71128278,0.00018,120]
[421081801,1776995432558,-150.0,0.00018253,2]
[421081802,1776995432567,-160.0,0.00018505,3]
[421081803,1776995432839,-3964.30893712,0.00018595,2]
[421081832,1776995438842,-63928.88222281,0.00018595,2]
[421081834,1776995438854,-68175.52194025,0.00018595,2]
[421081839,1776995438896,-1297.29598358,0.00018595,2]
[421081863,1776995440948,-1901.35019096,0.00018595,2]
[421081864,1776995440960,-4074.60966843,0.00018595,2]
[421081865,1776995441054,-2329.1941798,0.00018595,2]
[421081873,1776995443947,-1195.92778728,0.00018595,2]
[421081874,1776995443959,-639.07376946,0.00018595,2]
[421081875,1776995444002,-7953.51744111,0.00018595,2]
[421081876,1776995444057,-729.67770619,0.00018595,2]
[421082004,1776995447130,-3392.34186895,0.00018595,2]
[421082044,1776996429098,-1344.27201135,0.000119,5]
[421082045,1776996429123,-66.6032213,0.00012672,2]
[421082046,1776996446082,-246.24709567,0.00012672,2]
[421082047,1776996564120,-588.0,0.00012545,2]
[421082048,1776996566094,-288.13034234,0.00012545,2]
[421082049,1776996566116,-585.99538473,0.00012545,2]
[421082053,1776996632653,-300.0,0.00011343,22]
[421082054,1776996632662,-400.499995,0.00012672,2]
[421082128,1776996639823,-198.500005,0.00012672,2]
[421082129,1776996639833,-150.0,0.00012672,2]
[421082130,1776996639842,-1000.0,0.00013699,2]
[421082131,1776996639851,-161.0865462,0.00014672,2]
[421082132,1776996639928,-15.9134538,0.00014672,2]
[421082133,1776996639938,-300.0,0.00014998,2]
[421082134,1776996639947,-860.0,0.00014998,2]
[421082135,1776996639956,-513.46025851,0.00014999,2]
[421082136,1776996639966,-91.68284111,0.00014999,2]
[421082137,1776996639978,-775.65610037,0.00014999,2]
[421082138,1776996639987,-500.0,0.00014999,2]
[421082139,1776996639996,-202.170118,0.00014999,2]
[421082140,1776996640006,-625.40643432,0.00014999,2]
[421082141,1776996640016,-500.0,0.00014999,2]
[421082142,1776996640025,-241.53088181,0.00014999,2]
[421082143,1776996640034,-500.0,0.00014999,2]
[421082144,1776996640043,-500.0,0.00014999,2]
[421082145,1776996640052,-500.0,0.00014999,2]
[421082146,1776996640062,-523.27686509,0.00014999,2]
[421082147,1776996640071,-500.0,0.00014999,2]
[421082148,1776996640080,-500.0,0.00014999,2]
[421082149,1776996640089,-500.0,0.00014999,2]
[421082150,1776996640098,-500.0,0.00014999,2]
[421082151,1776996640107,-500.0,0.00014999,2]
[421082152,1776996640116,-500.0,0.00014999,2]
[421082153,1776996640126,-618.47103224,0.00014999,2]
[421082154,1776996640136,-199.70100324,0.00014999,2]
[421082155,1776996640145,-500.0,0.00014999,2]
[421082156,1776996640154,-500.0,0.00014999,2]
[421082157,1776996640163,-500.0,0.00014999,2]
[421082158,1776996640173,-500.0,0.00014999,2]
[421082159,1776996640182,-500.0,0.00014999,2]
[421082160,1776996640191,-500.0,0.00014999,2]
[421082161,1776996640200,-500.0,0.00014999,2]
[421082162,1776996640209,-500.0,0.00014999,2]
[421082163,1776996640219,-500.0,0.00014999,2]
[421082164,1776996640227,-500.0,0.00014999,2]
[421082165,1776996640236,-500.0,0.00014999,2]
[421082166,1776996640246,-500.0,0.00014999,2]
[421082167,1776996640255,-500.0,0.00014999,2]
[421082168,1776996640264,-500.0,0.00014999,2]
[421082169,1776996640273,-500.0,0.00014999,2]
[421082170,1776996640282,-500.0,0.00014999,2]
[421082171,1776996640292,-500.0,0.00014999,2]
[421082172,1776996640301,-500.0,0.00014999,2]
[421082173,1776996640310,-500.0,0.00014999,2]
[421082174,1776996640319,-500.0,0.00014999,2]
[421082175,1776996640328,-500.0,0.00014999,2]
[421082176,1776996640338,-500.0,0.00014999,2]
[421082177,1776996640347,-500.0,0.00014999,2]
[421082178,1776996640356,-500.0,0.00014999,2]
[421082179,1776996640365,-500.0,0.00014999,2]
[421082180,1776996640375,-500.0,0.00014999,2]
[421082181,1776996640384,-500.0,0.00014999,2]
[421082182,1776996640393,-500.0,0.00014999,2]
[421082183,1776996640402,-500.0,0.00014999,2]
[421082184,1776996640412,-500.0,0.00014999,2]
[421082185,1776996640421,-500.0,0.00014999,2]
[421082186,1776996640430,-500.0,0.00014999,2]
[421082187,1776996640439,-269.42280445,0.00014999,2]
[421082188,1776996640448,-224.54010056,0.00014999,2]
[421082189,1776996640457,-81582.37843547,0.00015,2]
[421082191,1776996640467,-337.91551151,0.00015199,2]
[421082192,1776996640477,-300.0,0.00015299,2]
[421082193,1776996640486,-300.0,0.00015299,2]
[421082194,1776996640495,-300.0,0.00015299,2]
[421082195,1776996640504,-300.0,0.00015299,2]
[421082196,1776996640514,-300.0,0.00015299,2]
[421082197,1776996640524,-300.0,0.00015299,2]
[421082198,1776996640533,-300.0,0.00015299,2]
[421082199,1776996640542,-300.0,0.00015299,2]
[421082200,1776996640554,-300.0,0.00015299,2]
[421082201,1776996640563,-300.0,0.00015299,2]
[421082202,1776996640572,-300.0,0.00015299,2]
[421082203,1776996640581,-300.0,0.00015299,2]
[421082204,1776996640591,-300.0,0.00015299,2]
[421082205,1776996640601,-300.0,0.00015299,2]
[421082206,1776996640612,-300.0,0.00015299,2]
[421082208,1776996640623,-600.0,0.00015299,2]
[421082209,1776996640632,-150.0,0.00016,2]
[421082211,1776996640642,-420.14108933,0.00016,2]
[421082212,1776996640653,-1228.32767493,0.00016338,2]
[421082213,1776996640662,-420.0,0.00016415,2]
[421082214,1776996640672,-500.0,0.00016438,2]
[421082215,1776996640682,-500.0,0.00016438,2]
[421082216,1776996640693,-536.44122126,0.00016438,2]
[421082217,1776996640702,-337.91551145,0.00016585,2]
[421082218,1776996640712,-204.0,0.00016672,2]
[421082219,1776996640722,-720.0,0.00016829,2]
[421082220,1776996640731,-1228.32767493,0.00017229,2]
[421082221,1776996640740,-366.6,0.0001778,2]
[421082222,1776996640749,-587.0,0.00017965,2]
[421082223,1776996640758,-337.91551145,0.00017971,2]
[421082224,1776996640767,-325.2261368,0.00018056,2]
[421082225,1776996640776,-455.7290828,0.00018056,2]
[421082226,1776996640785,-455.80029,0.00018056,2]
[421082227,1776996640794,-1228.32767493,0.00018119,2]
[421082228,1776996640804,-259.659,0.00018253,2]
[421082229,1776996640813,-149.9299,0.00018329,2]
[421082230,1776996640823,-219.96,0.0001833,2]
[421082231,1776996640832,-445.202766,0.00018349,2]
[421082232,1776996640842,-299.41046397,0.00018349,2]
[421082233,1776996640851,-537.6845,0.00018349,2]
[421082234,1776996640860,-537.6845,0.00018349,2]
[421082235,1776996640870,-1957.856,0.00018349,2]
[421082236,1776996640879,-174.64122322,0.00018349,2]
[421082237,1776996640888,-2150.738,0.00018349,2]
[421082238,1776996640897,-152.0,0.00018372,7]
[421082239,1776996640907,-151.0,0.00018404,2]
[421082240,1776996640915,-151.0,0.00018404,2]
[421082241,1776996640925,-358.061954,0.00018404,2]
[421082242,1776996640934,-358.061954,0.00018404,2]
[421082243,1776996640943,-358.061954,0.00018404,2]
[421082244,1776996640953,-358.061954,0.00018404,2]
[421082245,1776996640962,-157.927236,0.00018404,2]
[421082246,1776996640971,-557.5788265,0.00018404,2]
[421082247,1776996640980,-2030.296672,0.00018404,2]
[421082248,1776996640989,-578.20924308,0.00018459,2]
[421082249,1776996640998,-2105.41764886,0.00018459,2]
[421082250,1776996641008,-151.678005,0.00018484,2]
[421082251,1776996641017,-151.0,0.00018484,2]
[421082252,1776996641026,-934.94107,0.00018484,2]
[421082253,1776996641035,-934.94107,0.00018484,2]
[421082255,1776996641045,-934.94107,0.00018484,2]
[421082256,1776996641054,-934.94107,0.00018484,2]
[421082257,1776996641063,-864.0,0.00018512,2]
[421082258,1776996641072,-599.60298507,0.00018514,2]
[421082259,1776996641081,-2183.31810187,0.00018514,2]